[Event "HSG Open 2022 A"]
[Site "Hilversum, Netherlands"]
[Date "2022.06.17"]
[Round "1.6"]
[White "Elgersma, Onno"]
[Black "Straat, Evert-Jan"]
[Result "1-0"]
[TimeControl "1:50 + 0.10"]
[WhiteElo "2312"]
[BlackElo "2017"]

1. e4 {[%clk 01:50:16]} {[%emt 00:00:02]} e5 {[%clk 01:49:56]} {[%emt
00:00:22]} 2. Nf3 {[%clk 01:50:21]} {[%emt 00:00:07]} Nf6 {[%clk 01:49:55]}
{[%emt 00:00:11]} 3. Nc3 {[%clk 01:47:54]} {[%emt 00:02:38]} Nc6 {[%clk
01:49:53]} {[%emt 00:00:12]} 4. Bb5 {[%clk 01:46:23]} {[%emt 00:01:41]} Bb4
{[%clk 01:49:33]} {[%emt 00:00:30]} 5. d3 {[%clk 01:45:09]} {[%emt 00:01:25]}
d6 {[%clk 01:47:58]} {[%emt 00:01:45]} 6. O-O {[%clk 01:44:17]} {[%emt
00:01:02]} Bg4 {[%clk 01:44:32]} {[%emt 00:08:50]} 7. h3 {[%clk 01:28:52]}
{[%emt 00:10:21]} Bd7 {[%clk 01:41:35]} {[%emt 00:03:06]} 8. Ne2 {[%clk
01:26:23]} {[%emt 00:02:38]} h6 {[%clk 01:30:46]} {[%emt 00:10:59]} 9. Ng3
{[%clk 01:26:11]} {[%emt 00:00:22]} Nd4 {[%clk 01:25:29]} {[%emt 00:05:27]} 10.
Bxd7+ {[%clk 01:22:08]} {[%emt 00:04:14]} Qxd7 {[%clk 01:25:10]} {[%emt
00:00:29]} 11. Nxd4 {[%clk 01:18:36]} {[%emt 00:03:42]} exd4 {[%clk 01:25:12]}
{[%emt 00:00:08]} 12. Qf3 {[%clk 01:18:31]} {[%emt 00:00:16]} Bc5 {[%clk
01:19:13]} {[%emt 00:06:08]} 13. Nf5 {[%clk 01:16:29]} {[%emt 00:02:12]} Rg8
{[%clk 01:09:35]} {[%emt 00:09:48]} 14. Nxg7+ {[%clk 01:14:35]} {[%emt
00:02:05]} Rxg7 {[%clk 01:09:33]} {[%emt 00:00:11]} 15. Qxf6 {[%clk 01:14:40]}
{[%emt 00:00:05]} Rg6 {[%clk 01:09:29]} {[%emt 00:00:14]} 16. Qf5 {[%clk
01:14:25]} {[%emt 00:00:25]} O-O-O {[%clk 01:04:20]} {[%emt 00:05:23]} 17.
Qxd7+ {[%clk 01:13:57]} {[%emt 00:00:35]} Kxd7 {[%clk 01:04:11]} {[%emt
00:00:18]} 18. f4 {[%clk 01:12:59]} {[%emt 00:01:08]} h5 {[%clk 01:02:10]}
{[%emt 00:02:12]} 19. f5 {[%clk 01:12:30]} {[%emt 00:00:39]} Rg7 {[%clk
01:00:43]} {[%emt 00:01:37]} 20. Bh6 {[%clk 01:12:21]} {[%emt 00:00:19]} Rg3
{[%clk 00:59:08]} {[%emt 00:01:45]} 21. Bf4 {[%clk 01:12:12]} {[%emt 00:00:19]}
Rg7 {[%clk 00:58:30]} {[%emt 00:00:49]} 22. Kf2 {[%clk 01:10:31]} {[%emt
00:01:51]} h4 {[%clk 00:52:19]} {[%emt 00:06:21]} 23. Rh1 {[%clk 01:08:45]}
{[%emt 00:01:56]} Rdg8 {[%clk 00:49:20]} {[%emt 00:03:09]} 24. Rag1 {[%clk
01:08:25]} {[%emt 00:00:30]} c6 {[%clk 00:47:00]} {[%emt 00:02:30]} 25. g4
{[%clk 01:05:11]} {[%emt 00:03:24]} f6 {[%clk 00:46:51]} {[%emt 00:00:19]} 26.
Kf3 {[%clk 01:05:05]} {[%emt 00:00:16]} Bb6 {[%clk 00:45:08]} {[%emt 00:01:53]}
27. Rg2 {[%clk 01:04:25]} {[%emt 00:00:50]} Bd8 {[%clk 00:44:39]} {[%emt
00:00:39]} 28. Rhg1 {[%clk 01:04:01]} {[%emt 00:00:34]} Be7 {[%clk 00:43:04]}
{[%emt 00:01:46]} 29. c3 {[%clk 01:03:36]} {[%emt 00:00:35]} dxc3 {[%clk
00:38:03]} {[%emt 00:05:10]} 30. bxc3 {[%clk 01:03:41]} {[%emt 00:00:06]} c5
{[%clk 00:37:59]} {[%emt 00:00:14]} 31. d4 {[%clk 01:03:05]} {[%emt 00:00:46]}
cxd4 {[%clk 00:37:02]} {[%emt 00:01:07]} 32. cxd4 {[%clk 01:03:10]} {[%emt
00:00:04]} Rc8 {[%clk 00:36:57]} {[%emt 00:00:14]} 33. Rc1 {[%clk 01:02:59]}
{[%emt 00:00:22]} Rxc1 {[%clk 00:35:44]} {[%emt 00:01:23]} 34. Bxc1 {[%clk
01:03:03]} {[%emt 00:00:06]} Rg8 {[%clk 00:35:45]} {[%emt 00:00:09]} 35. Rc2
{[%clk 01:02:53]} {[%emt 00:00:20]} Rg7 {[%clk 00:32:35]} {[%emt 00:03:20]} 36.
Bf4 {[%clk 01:02:42]} {[%emt 00:00:20]} Rg8 {[%clk 00:31:02]} {[%emt 00:01:45]}
37. e5 {[%clk 01:02:26]} {[%emt 00:00:26]} dxe5 {[%clk 00:30:42]} {[%emt
00:00:29]} 38. dxe5 {[%clk 01:02:31]} {[%emt 00:00:06]} fxe5 {[%clk 00:30:40]}
{[%emt 00:00:12]} 39. Bxe5 {[%clk 01:02:35]} {[%emt 00:00:05]} Bd8 {[%clk
00:30:42]} {[%emt 00:00:08]} 40. Rd2+ {[%clk 01:00:59]} {[%emt 00:01:46]} Ke7
{[%clk 00:29:57]} {[%emt 00:00:55]} 41. Ke4 {[%clk 01:00:43]} {[%emt 00:00:26]}
1-0

[Event "HSG Open 2022 A"]
[Site "Hilversum, Netherlands"]
[Date "2022.06.17"]
[Round "1.9"]
[White "Cornelisse, Sam"]
[Black "Van Meegen, Ruud"]
[Result "0-1"]
[TimeControl "1:50 + 0.10"]
[WhiteElo "2008"]
[BlackElo "2285"]

1. e4 {[%clk 01:50:16]} {[%emt 00:00:03]} c6 {[%clk 01:50:13]} {[%emt
00:00:07]} 2. d4 {[%clk 01:50:21]} {[%emt 00:00:06]} d5 {[%clk 01:50:18]}
{[%emt 00:00:05]} 3. e5 {[%clk 01:50:24]} {[%emt 00:00:07]} c5 {[%clk
01:50:23]} {[%emt 00:00:05]} 4. dxc5 {[%clk 01:50:21]} {[%emt 00:00:14]} e6
{[%clk 01:50:21]} {[%emt 00:00:11]} 5. a3 {[%clk 01:50:13]} {[%emt 00:00:19]}
Nc6 {[%clk 01:50:20]} {[%emt 00:00:10]} 6. Nf3 {[%clk 01:49:26]} {[%emt
00:00:57]} Bxc5 {[%clk 01:50:17]} {[%emt 00:00:14]} 7. b4 {[%clk 01:49:24]}
{[%emt 00:00:12]} Bb6 {[%clk 01:50:20]} {[%emt 00:00:06]} 8. Bb2 {[%clk
01:49:12]} {[%emt 00:00:22]} Nge7 {[%clk 01:50:17]} {[%emt 00:00:13]} 9. Nbd2
{[%clk 01:47:44]} {[%emt 00:01:38]} Ng6 {[%clk 01:49:39]} {[%emt 00:00:48]} 10.
Bd3 {[%clk 01:45:54]} {[%emt 00:02:01]} O-O {[%clk 01:49:09]} {[%emt 00:00:39]}
11. Bxg6 {[%clk 01:43:32]} {[%emt 00:02:33]} fxg6 {[%clk 01:40:50]} {[%emt
00:08:29]} 12. O-O {[%clk 01:42:46]} {[%emt 00:00:56]} g5 {[%clk 01:38:30]}
{[%emt 00:02:30]} 13. h3 {[%clk 01:34:32]} {[%emt 00:08:24]} h6 {[%clk
01:34:04]} {[%emt 00:04:35]} 14. c4 {[%clk 01:30:30]} {[%emt 00:04:12]} Ne7
{[%clk 01:32:30]} {[%emt 00:01:44]} 15. Rc1 {[%clk 01:25:16]} {[%emt 00:05:24]}
Bd7 {[%clk 01:27:49]} {[%emt 00:04:51]} 16. c5 {[%clk 01:17:31]} {[%emt
00:07:56]} Bc7 {[%clk 01:27:50]} {[%emt 00:00:08]} 17. Re1 {[%clk 01:03:37]}
{[%emt 00:14:04]} Ng6 {[%clk 01:25:09]} {[%emt 00:02:51]} 18. Nd4 {[%clk
00:47:28]} {[%emt 00:16:19]} Qe8 {[%clk 01:23:45]} {[%emt 00:01:34]} 19. N2f3
{[%clk 00:46:17]} {[%emt 00:01:22]} Nf4 {[%clk 01:21:49]} {[%emt 00:02:06]} 20.
Re3 {[%clk 00:43:40]} {[%emt 00:02:46]} Rc8 {[%clk 01:09:48]} {[%emt 00:12:11]}
21. Ne2 {[%clk 00:42:01]} {[%emt 00:01:49]} Qg6 {[%clk 00:58:27]} {[%emt
00:11:31]} 22. Qc2 {[%clk 00:36:17]} {[%emt 00:05:09]} Qh5 {[%clk 00:56:38]}
{[%emt 00:02:45]} 23. Nh2 {[%clk 00:33:33]} {[%emt 00:02:53]} Rf7 {[%clk
00:46:00]} {[%emt 00:10:48]} 24. Ng3 {[%clk 00:29:19]} {[%emt 00:04:24]} Qg6
{[%clk 00:43:14]} {[%emt 00:02:55]} 25. Ng4 {[%clk 00:28:18]} {[%emt 00:01:11]}
Rcf8 {[%clk 00:41:15]} {[%emt 00:02:09]} 26. Qxg6 {[%clk 00:26:50]} {[%emt
00:01:39]} Nxg6 {[%clk 00:41:17]} {[%emt 00:00:07]} 27. Rc2 {[%clk 00:24:28]}
{[%emt 00:02:32]} Bc6 {[%clk 00:34:54]} {[%emt 00:06:33]} 28. Bd4 {[%clk
00:22:26]} {[%emt 00:02:12]} Bb5 {[%clk 00:30:31]} {[%emt 00:04:33]} 29. Re1
{[%clk 00:20:56]} {[%emt 00:01:41]} Nf4 {[%clk 00:29:22]} {[%emt 00:01:18]} 30.
f3 {[%clk 00:17:45]} {[%emt 00:03:21]} a5 {[%clk 00:27:22]} {[%emt 00:02:10]}
31. Rd2 {[%clk 00:15:56]} {[%emt 00:01:59]} Ra8 {[%clk 00:24:32]} {[%emt
00:02:59]} 32. Rb1 {[%clk 00:13:47]} {[%emt 00:02:18]} axb4 {[%clk 00:23:40]}
{[%emt 00:01:03]} 33. axb4 {[%clk 00:13:50]} {[%emt 00:00:07]} h5 {[%clk
00:19:40]} {[%emt 00:04:10]} 34. Ne3 {[%clk 00:11:57]} {[%emt 00:02:03]} h4
{[%clk 00:19:40]} {[%emt 00:00:10]} 35. Ngf1 {[%clk 00:08:52]} {[%emt
00:03:15]} Ne2+ {[%clk 00:19:41]} {[%emt 00:00:09]} 36. Kh1 {[%clk 00:08:50]}
{[%emt 00:00:13]} Nxd4 {[%clk 00:19:36]} {[%emt 00:00:14]} 37. Rxd4 {[%clk
00:08:55]} {[%emt 00:00:06]} Bxe5 {[%clk 00:19:36]} {[%emt 00:00:09]} 38. Rg4
{[%clk 00:08:41]} {[%emt 00:00:23]} Bf4 {[%clk 00:18:41]} {[%emt 00:01:06]} 0-1

[Event "HSG Open 2022 A"]
[Site "Hilversum, Netherlands"]
[Date "2022.06.17"]
[Round "2.1"]
[White "Beerdsen, Thomas"]
[Black "Vlaming, Jos"]
[Result "1-0"]
[TimeControl "1:50 + 0.10"]
[WhiteElo "2494"]
[BlackElo "2107"]

1. e4 {[%clk 01:50:15]} {[%emt 01:50:41]} g6 {[%clk 01:50:02]} 2. d4 {[%clk
01:50:18]} Bg7 {[%clk 01:50:11]} 3. Nc3 {[%clk 01:49:50]} c6 {[%clk 01:50:18]}
4. Nf3 {[%clk 01:49:49]} d5 {[%clk 01:50:23]} 5. h3 {[%clk 01:49:50]} Nf6
{[%clk 01:50:20]} 6. e5 {[%clk 01:49:52]} Ne4 {[%clk 01:50:19]} 7. Be2 {[%clk
01:49:40]} Nxc3 {[%clk 01:46:56]} 8. bxc3 {[%clk 01:49:45]} O-O {[%clk
01:46:51]} 9. h4 {[%clk 01:49:43]} c5 {[%clk 01:45:35]} 10. h5 {[%clk
01:49:35]} Nc6 {[%clk 01:41:27]} 11. Bd2 {[%clk 01:32:24]} Bg4 {[%clk
01:25:44]} 12. hxg6 {[%clk 01:30:27]} f6 {[%clk 01:09:55]} {[%emt 00:05:43]} 13.
gxh7+ {[%clk 01:29:13]} {[%emt 00:01:24]} Kf7 {[%clk 01:08:21]} {[%emt
00:01:44]} 14. Ng5+ {[%clk 01:29:03]} {[%emt 00:00:20]} fxg5 {[%clk 01:08:06]}
{[%emt 00:00:26]} 15. Bxg4 {[%clk 01:29:05]} {[%emt 00:00:08]} 1-0

[Event "HSG Open 2022 A"]
[Site "Hilversum, Netherlands"]
[Date "2022.06.17"]
[Round "2.2"]
[White "Gilmanov, Mansur"]
[Black "Slagboom, Leandro"]
[Result "1-0"]
[TimeControl "1:50 + 0.10"]
[WhiteElo "2390"]
[BlackElo "2098"]

1. d4 {[%clk 01:50:11]} {[%emt 02:30:39]} d5 {[%clk 01:50:12]} 2. e3 {[%clk
01:49:49]} c5 {[%clk 01:49:12]} 3. dxc5 {[%clk 01:48:16]} Qa5+ {[%clk
01:42:55]} 4. Bd2 {[%clk 01:45:10]} Qxc5 {[%clk 01:42:56]} 5. Bc3 {[%clk
01:45:13]} Nc6 {[%clk 01:42:12]} 6. Nd2 {[%clk 01:44:34]} e5 {[%clk 01:40:07]}
7. Ngf3 {[%clk 01:43:10]} f6 {[%clk 01:36:38]} 8. Nb3 {[%clk 01:38:18]} Qd6
{[%clk 01:36:14]} 9. Be2 {[%clk 01:27:27]} Be6 {[%clk 01:35:29]} 10. O-O {[%clk
01:26:53]} O-O-O {[%clk 01:32:45]} 11. a4 {[%clk 01:25:51]} g5 {[%clk
01:30:20]} 12. Na5 {[%clk 01:16:51]} h5 {[%clk 01:21:57]} {[%emt 00:07:18]} 13.
b4 {[%clk 01:11:30]} {[%emt 00:05:32]} Nxa5 {[%clk 01:18:17]} {[%emt 00:03:49]}
14. bxa5 {[%clk 01:09:56]} {[%emt 00:01:44]} a6 {[%clk 01:16:40]} {[%emt
00:01:47]} 15. Rb1 {[%clk 01:09:07]} {[%emt 00:00:58]} Ne7 {[%clk 01:15:14]}
{[%emt 00:01:38]} 16. Rb6 {[%clk 00:57:22]} {[%emt 00:11:54]} Nc6 {[%clk
01:13:24]} {[%emt 00:02:00]} 17. Bb4 {[%clk 00:56:28]} {[%emt 00:01:05]} Qd7
{[%clk 01:06:44]} {[%emt 00:06:49]} 18. Bxf8 {[%clk 00:55:54]} {[%emt
00:00:44]} Rdxf8 {[%clk 01:04:33]} {[%emt 00:02:21]} 19. Qd2 {[%clk 00:55:33]}
{[%emt 00:00:31]} Rf7 {[%clk 00:47:21]} {[%emt 00:17:22]} 20. Rfb1 {[%clk
00:53:33]} {[%emt 00:02:09]} Qe8 {[%clk 00:39:12]} {[%emt 00:08:21]} 21. Ne1
{[%clk 00:47:45]} {[%emt 00:05:58]} Nd8 {[%clk 00:30:17]} {[%emt 00:09:04]} 22.
Nd3 {[%clk 00:35:35]} {[%emt 00:12:20]} Rc7 {[%clk 00:29:17]} {[%emt 00:01:10]}
23. Nb4 {[%clk 00:31:00]} {[%emt 00:04:45]} Qxa4 {[%clk 00:23:20]} {[%emt
00:06:07]} 24. Nxa6 {[%clk 00:15:38]} {[%emt 00:15:33]} Qxc2 {[%clk 00:21:36]}
{[%emt 00:01:54]} 25. Qb4 {[%clk 00:12:09]} {[%emt 00:03:38]} Bf5 {[%clk
00:12:49]} {[%emt 00:08:57]} 26. Nxc7 {[%clk 00:10:03]} {[%emt 00:02:16]} Qxb1+
{[%clk 00:12:28]} {[%emt 00:00:32]} 27. Qxb1 {[%clk 00:10:05]} {[%emt
00:00:08]} Bxb1 {[%clk 00:12:35]} {[%emt 00:00:03]} 28. Nxd5 {[%clk 00:09:29]}
{[%emt 00:00:46]} Ba2 {[%clk 00:12:17]} {[%emt 00:00:27]} 29. Nxf6 {[%clk
00:08:36]} {[%emt 00:01:04]} Bf7 {[%clk 00:10:34]} {[%emt 00:01:53]} 30. Ne4
{[%clk 00:08:06]} {[%emt 00:00:39]} g4 {[%clk 00:10:14]} {[%emt 00:00:31]} 31.
a6 {[%clk 00:07:19]} {[%emt 00:00:56]} Kc7 {[%clk 00:09:43]} {[%emt 00:00:41]}
32. axb7 {[%clk 00:07:00]} {[%emt 00:00:30]} Nxb7 {[%clk 00:09:37]} {[%emt
00:00:16]} 33. Rxb7+ {[%clk 00:06:53]} {[%emt 00:00:16]} Kxb7 {[%clk 00:09:42]}
{[%emt 00:00:05]} 34. Nd6+ {[%clk 00:06:59]} {[%emt 00:00:04]} Kc6 {[%clk
00:09:36]} {[%emt 00:00:16]} 35. Nxf7 {[%clk 00:07:04]} {[%emt 00:00:05]} Re8
{[%clk 00:09:20]} {[%emt 00:00:26]} 36. Bb5+ {[%clk 00:06:53]} {[%emt
00:00:06]} 1-0

[Event "HSG Open 2022 A"]
[Site "Hilversum, Netherlands"]
[Date "2022.06.17"]
[Round "2.3"]
[White "Boekelman, Jan"]
[Black "Roebers, Eline"]
[Result "1-0"]
[TimeControl "1:50 + 0.10"]
[WhiteElo "2116"]
[BlackElo "2378"]

1. d4 {[%clk 01:47:56]} {[%emt 02:31:12]} Nf6 {[%clk 01:50:15]} 2. c4 {[%clk
01:47:52]} g6 {[%clk 01:50:23]} 3. Nc3 {[%clk 01:47:52]} Bg7 {[%clk 01:50:31]}
4. e4 {[%clk 01:47:53]} d6 {[%clk 01:50:38]} 5. Be2 {[%clk 01:47:55]} O-O
{[%clk 01:50:40]} 6. Bg5 {[%clk 01:47:59]} c5 {[%clk 01:49:55]} 7. d5 {[%clk
01:48:02]} e6 {[%clk 01:49:31]} 8. Qc1 {[%clk 01:48:04]} exd5 {[%clk 01:47:30]}
9. exd5 {[%clk 01:48:03]} Re8 {[%clk 01:38:52]} 10. Nf3 {[%clk 01:47:48]} b5
{[%clk 01:19:32]} 11. cxb5 {[%clk 01:46:12]} a6 {[%clk 01:17:47]} 12. O-O
{[%clk 01:45:29]} Nbd7 {[%clk 01:16:05]} 13. a4 {[%clk 01:44:21]} Qa5 {[%clk
01:11:11]} 14. Bd2 {[%clk 01:40:53]} Qc7 {[%clk 01:10:22]} 15. bxa6 {[%clk
01:22:12]} {[%emt 00:14:14]} Nb6 {[%clk 01:05:27]} {[%emt 00:05:08]} 16. Bb5
{[%clk 01:16:54]} {[%emt 00:05:27]} Bd7 {[%clk 01:01:12]} {[%emt 00:04:26]} 17.
Rd1 {[%clk 01:11:35]} {[%emt 00:05:28]} Ne4 {[%clk 00:45:39]} {[%emt 00:15:45]}
18. Nxe4 {[%clk 01:04:08]} {[%emt 00:07:35]} Rxe4 {[%clk 00:45:02]} {[%emt
00:00:47]} 19. Ba5 {[%clk 01:03:53]} {[%emt 00:00:26]} Bxb5 {[%clk 00:38:55]}
{[%emt 00:06:17]} 20. axb5 {[%clk 01:03:59]} {[%emt 00:00:02]} c4 {[%clk
00:36:59]} {[%emt 00:02:08]} 21. Qc2 {[%clk 00:58:32]} {[%emt 00:05:36]} Rf4
{[%clk 00:34:50]} {[%emt 00:02:20]} 22. Qe2 {[%clk 00:43:47]} {[%emt 00:14:55]}
Qc5 {[%clk 00:33:41]} {[%emt 00:01:19]} 23. Qe3 {[%clk 00:43:29]} {[%emt
00:00:28]} Qxe3 {[%clk 00:33:47]} {[%emt 00:00:04]} 24. fxe3 {[%clk 00:43:34]}
{[%emt 00:00:05]} 1-0

[Event "HSG Open 2022 A"]
[Site "Hilversum, Netherlands"]
[Date "2022.06.17"]
[Round "2.4"]
[White "Harff, Marcel"]
[Black "Ercan, Selman"]
[Result "1-0"]
[TimeControl "1:50 + 0.10"]
[WhiteElo "2329"]
[BlackElo "2094"]

1. c4 {[%clk 01:50:15]} {[%emt 02:30:21]} c6 {[%clk 01:50:04]} 2. g3 {[%clk
01:50:06]} d5 {[%clk 01:49:40]} 3. Bg2 {[%clk 01:50:07]} e5 {[%clk 01:48:51]} 4.
cxd5 {[%clk 01:49:58]} cxd5 {[%clk 01:48:53]} 5. d4 {[%clk 01:49:55]} e4 {[%clk
01:48:32]} 6. Nc3 {[%clk 01:49:50]} Nc6 {[%clk 01:47:13]} 7. e3 {[%clk
01:49:07]} Nf6 {[%clk 01:42:20]} 8. Nge2 {[%clk 01:48:41]} Bd6 {[%clk
01:36:53]} 9. f3 {[%clk 01:48:11]} exf3 {[%clk 01:32:03]} 10. Bxf3 {[%clk
01:48:19]} O-O {[%clk 01:31:19]} 11. O-O {[%clk 01:47:55]} Bh3 {[%clk
01:25:02]} 12. Bg2 {[%clk 01:47:44]} Bxg2 {[%clk 01:22:57]} 13. Kxg2 {[%clk
01:47:52]} Qe7 {[%clk 01:20:17]} 14. Qd3 {[%clk 01:47:18]} Rad8 {[%clk
01:19:23]} 15. Bd2 {[%clk 01:47:15]} Bb8 {[%clk 01:17:38]} 16. Rf2 {[%clk
01:41:14]} Ne4 {[%clk 01:11:10]} 17. Nxe4 {[%clk 01:40:48]} dxe4 {[%clk
01:10:50]} 18. Qb3 Rd7 {[%clk 01:05:14]} {[%emt 00:03:44]} 19. Raf1 {[%clk
01:40:11]} Qg5 {[%clk 01:02:45]} {[%emt 00:01:42]} 20. Rf5 {[%clk 01:33:33]}
{[%emt 00:06:47]} Qg6 {[%clk 00:59:06]} {[%emt 00:03:51]} 21. Rb5 {[%clk
01:33:04]} {[%emt 00:00:37]} Nd8 {[%clk 00:52:55]} {[%emt 00:06:22]} 22. Rd5
{[%clk 01:29:13]} {[%emt 00:04:01]} Rxd5 {[%clk 00:43:58]} {[%emt 00:09:07]} 23.
Qxd5 {[%clk 01:29:08]} {[%emt 00:00:14]} Ne6 {[%clk 00:43:05]} {[%emt
00:01:03]} 24. Bb4 {[%clk 01:28:05]} {[%emt 00:01:13]} Rd8 {[%clk 00:35:49]}
{[%emt 00:07:26]} 25. Qxb7 {[%clk 01:27:02]} {[%emt 00:01:14]} Qh5 {[%clk
00:32:36]} {[%emt 00:03:23]} 26. Ng1 {[%clk 01:27:02]} {[%emt 00:00:10]} f5
{[%clk 00:28:31]} {[%emt 00:04:15]} 27. d5 {[%clk 01:25:01]} {[%emt 00:02:10]}
Nf8 {[%clk 00:27:30]} {[%emt 00:01:11]} 28. Bc3 {[%clk 01:23:43]} {[%emt
00:01:28]} Nd7 {[%clk 00:25:21]} {[%emt 00:02:20]} 29. Ba5 {[%clk 01:23:12]}
{[%emt 00:00:41]} Nb6 {[%clk 00:25:20]} {[%emt 00:00:11]} 30. Bxb6 {[%clk
01:23:13]} {[%emt 00:00:09]} axb6 {[%clk 00:25:22]} {[%emt 00:00:07]} 31. Qxb6
{[%clk 01:23:18]} {[%emt 00:00:05]} Re8 {[%clk 00:21:13]} {[%emt 00:04:20]} 32.
Qc6 {[%clk 01:21:01]} {[%emt 00:02:27]} 1-0

[Event "HSG Open 2022 A"]
[Site "Hilversum, Netherlands"]
[Date "2022.06.17"]
[Round "2.5"]
[White "Labruyere, Roger"]
[Black "Elgersma, Onno"]
[Result "0-1"]
[TimeControl "1:50 + 0.10"]
[WhiteElo "2103"]
[BlackElo "2312"]

1. e4 {[%clk 01:40:27]} {[%emt 01:28:48]} c6 {[%clk 01:50:10]} 2. d4 {[%clk
01:40:31]} d5 {[%clk 01:50:16]} 3. e5 {[%clk 01:40:38]} Bf5 {[%clk 01:50:13]} 4.
Nd2 {[%clk 01:40:42]} e6 {[%clk 01:47:45]} 5. Nb3 {[%clk 01:37:15]} Nd7 {[%clk
01:47:30]} 6. Nf3 {[%clk 01:37:13]} a6 {[%clk 01:45:00]} 7. Be3 {[%clk
01:36:33]} Ne7 {[%clk 01:42:35]} 8. Bd3 {[%clk 01:34:13]} Bxd3 {[%clk
01:41:57]} 9. Qxd3 {[%clk 01:34:17]} Nf5 {[%clk 01:41:47]} 10. Bg5 {[%clk
01:31:38]} Be7 {[%clk 01:41:06]} 11. h4 {[%clk 01:30:50]} h6 {[%clk 01:39:08]}
12. Bxe7 {[%clk 01:28:24]} Nxe7 {[%clk 01:39:11]} 13. h5 {[%clk 01:28:17]} Rc8
{[%clk 01:36:30]} 14. c3 {[%clk 01:21:50]} c5 {[%clk 01:31:15]} 15. dxc5 {[%clk
01:15:22]} {[%emt 00:00:10]} Nxc5 {[%clk 01:29:12]} {[%emt 00:03:35]} 16. Nxc5
{[%clk 01:15:22]} Rxc5 {[%clk 01:29:17]} 17. Nd4 {[%clk 01:14:21]} {[%emt
00:00:05]} Qb6 {[%clk 01:28:51]} {[%emt 00:00:35]} 18. b4 {[%clk 01:07:03]}
{[%emt 00:07:28]} Rc4 {[%clk 01:28:25]} {[%emt 00:00:37]} 19. O-O {[%clk
01:03:32]} {[%emt 00:03:42]} O-O {[%clk 01:28:22]} {[%emt 00:00:12]} 20. Rac1
{[%clk 00:50:07]} {[%emt 00:13:35]} Rfc8 {[%clk 01:28:18]} {[%emt 00:00:14]} 21.
Nb3 {[%clk 00:33:44]} {[%emt 00:16:33]} Qc7 {[%clk 01:22:45]} {[%emt 00:05:43]}
22. Rfe1 {[%clk 00:32:23]} {[%emt 00:01:30]} b6 {[%clk 01:21:53]} {[%emt
00:01:03]} 23. Re3 {[%clk 00:25:38]} {[%emt 00:06:56]} Nf5 {[%clk 01:21:14]}
{[%emt 00:00:47]} 24. Re2 {[%clk 00:21:06]} {[%emt 00:04:43]} d4 {[%clk
01:10:47]} {[%emt 00:10:35]} 25. g4 {[%clk 00:16:44]} {[%emt 00:04:34]} Ne7
{[%clk 01:10:43]} {[%emt 00:00:14]} 26. Nxd4 {[%clk 00:15:24]} {[%emt
00:01:30]} Nd5 {[%clk 01:10:49]} {[%emt 00:00:04]} 27. Ree1 {[%clk 00:10:27]}
{[%emt 00:05:08]} Nxb4 {[%clk 01:09:28]} {[%emt 00:01:30]} 28. Qd2 {[%clk
00:04:24]} {[%emt 00:06:13]} Nd5 {[%clk 01:07:22]} {[%emt 00:02:16]} 29. g5
{[%clk 00:03:43]} {[%emt 00:00:52]} Rxc3 {[%clk 01:06:38]} {[%emt 00:00:53]} 30.
Ne2 {[%clk 00:03:14]} {[%emt 00:00:39]} Rc2 {[%clk 01:06:22]} {[%emt 00:00:25]}
31. Qd4 {[%clk 00:02:04]} {[%emt 00:01:20]} Rxe2 {[%emt 00:04:01]} 32. Rxc7
{[%clk 00:02:12]} {[%emt 00:00:01]} Rxe1+ {[%clk 01:02:40]} {[%emt 00:00:04]}
33. Kg2 {[%clk 00:02:21]} {[%emt 00:00:01]} Rxc7 {[%clk 01:02:35]} {[%emt
00:00:13]} 34. gxh6 {[%clk 00:02:28]} {[%emt 00:00:04]} gxh6 {[%clk 01:02:28]}
{[%emt 00:00:17]} 35. Qd2 {[%clk 00:02:09]} {[%emt 00:00:29]} Rxe5 {[%clk
01:02:21]} {[%emt 00:00:17]} 36. Qxh6 {[%clk 00:02:14]} {[%emt 00:00:05]} Rf5
{[%clk 01:02:07]} {[%emt 00:00:24]} 37. Qd2 {[%clk 00:01:42]} {[%emt 00:00:42]}
Rxh5 {[%clk 01:01:47]} {[%emt 00:00:30]} 38. Kf3 {[%clk 00:00:25]} {[%emt
00:01:28]} Rf5+ {[%clk 01:01:39]} {[%emt 00:00:17]} 39. Kg3 {[%clk 00:00:12]}
{[%emt 00:00:24]} f6 {[%clk 01:01:23]} {[%emt 00:00:25]} 40. Qe2 {[%clk
00:00:11]} {[%emt 00:00:12]} Rg7+ {[%clk 01:01:25]} {[%emt 00:00:07]} 41. Kh2
{[%clk 00:00:17]} {[%emt 00:00:04]} Nf4 {[%clk 01:00:42]} {[%emt 00:00:53]} 0-1